{"text_format":"3","workbook":"xlsx","n_sheets":4,"sheets":["PARTE 1a SPESE STUDENTE","PARTE 2a SPESE ACCOMPAGNATORI","PARTE 3a ALTRE SPESE","PARTE 4a SCHEDA DI RIEPILOGO"],"not_rendered":{"images":1},"read":"whole","date_system":"1900"}

{"sheet":"PARTE 1a SPESE STUDENTE","index":0,"n_rows":35,"n_cols":16,"rows_kept":35,"merged":[[0,0,0,15],[5,0,5,15],[7,4,7,11],[9,0,9,7],[11,0,13,0],[11,1,12,5],[11,6,11,14],[11,15,13,15],[12,6,12,7],[12,8,12,9],[12,10,12,11],[12,12,12,13],[12,14,13,14],[34,0,34,5]]}
[]
[]
[{"$nulls":15},"ALLEGATO “A4” Schede di Rendicontazione”"]
[]
[]
["AVVISO PER LA PRESENTAZIONE DI PROGETTI DI ESPERIENZE ALL’ESTERO PER GLI ANNI FORMATIVI 2016/2017 E 2017/2018 DEGLI STUDENTI DEI CORSI IEFP, IFTS E ITS."]
[]
["Denominazione Istituzione scolastica/formativa/ATS capofila/Fondazione   ",{"$nulls":11},"Codice meccanografico scuola o ID unità organizzativa "]
[]
["PARTE PRIMA SCHEDA SPESE STUDENTE "]
[]
["N°","STUDENTE",{"$nulls":4},"SPESE INDIVIDUALI STUDENTE",{"$nulls":8},"NOTE"]
[{"$nulls":6},"Sezione A\n",null,"Sezione B",null,"Sezione C",null,"Sezione D",null,"TOT. Sezioni A+B+C+D\n€"]
[null,"Cognome ","Nome ","Codice F. ","Id percorso","Prosecuzione di un esperienza all'estero nell'ambito dell'Avviso duale \n(SI/NO)","SPESE VIAGGIO E TRASFERIMENTI\nTOT. COMPLESSIVO\n€\n ","Estremi di tutte le pezze giustificative di riscontro (es. fattura, scontrino e/o ricevute fiscali, ecc.)","SPESE VITTO\nTOT. COMPLESSIVO\n€\n","Estremi di tutte le pezze giustificative di riscontro (es. fattura, scontrino e/o ricevute fiscali, ecc.)","SPESE PERNOTTAMENTO\nTOT. COMPLESSIVO\n€\n","Estremi di tutte le pezze giustificative di riscontro (es. fattura, scontrino e/o ricevute fiscali, ecc.)","ULTERIORI SPESE FORMATIVE (non rientranti attività già finanziata con Avvisi IeFP, IFTS e ITS)\nTOT. COMPLESSIVO\n€\n","Estremi di tutte le pezze giustificative di riscontro (es. fattura, scontrino e/o ricevute fiscali, ecc.)"]
[1,{"$nulls":13},{"$f":"G15+I15+M15+K15","v":{"v":0,"d":"0.00"}}]
[2,{"$nulls":13},{"$f":"G16+I16+M16","v":{"v":0,"d":"0.00"}}]
[3,{"$nulls":13},{"v":0,"d":"0.00"}]
[4,{"$nulls":13},{"v":0,"d":"0.00"}]
[5,{"$nulls":13},{"v":0,"d":"0.00"}]
[6,{"$nulls":13},{"v":0,"d":"0.00"}]
[7,{"$nulls":13},{"v":0,"d":"0.00"}]
[8,{"$nulls":13},{"v":0,"d":"0.00"}]
[9,{"$nulls":13},{"v":0,"d":"0.00"}]
[10,{"$nulls":13},{"v":0,"d":"0.00"}]
[11,{"$nulls":13},{"v":0,"d":"0.00"}]
[12,{"$nulls":13},{"v":0,"d":"0.00"}]
[13,{"$nulls":13},{"v":0,"d":"0.00"}]
[14,{"$nulls":13},{"v":0,"d":"0.00"}]
[15,{"$nulls":13},{"v":0,"d":"0.00"}]
[16,{"$nulls":13},{"v":0,"d":"0.00"}]
[17,{"$nulls":13},{"v":0,"d":"0.00"}]
[18,{"$nulls":13},{"v":0,"d":"0.00"}]
[19,{"$nulls":13},{"v":0,"d":"0.00"}]
[20,{"$nulls":13},{"v":0,"d":"0.00"}]
["Totale",{"$nulls":5},{"$f":"SUM(G15:G34)","v":{"v":0,"d":"0.00"}},null,{"$f":"SUM(I15:I34)","v":{"v":0,"d":"0.00"}},null,{"$f":"SUM(K15:K34)","v":{"v":0,"d":"0.00"}},null,{"$f":"SUM(M15:M34)","v":{"v":0,"d":"0.00"}},null,{"$f":"SUM(O15:O34)","v":{"v":0,"d":"0.00"}}]

{"sheet":"PARTE 2a SPESE ACCOMPAGNATORI","index":1,"n_rows":22,"n_cols":13,"rows_kept":22,"merged":[[0,0,0,12],[2,0,2,12],[4,0,4,12],[6,4,6,8],[8,0,8,6],[10,0,12,0],[10,1,11,3],[10,5,10,11],[10,12,12,12],[11,5,11,6],[11,7,11,8],[11,9,11,10],[11,11,12,11],[21,0,21,3]]}
[]
[]
["ALLEGATO “A4” Schede di Rendicontazione”"]
[]
["AVVISO PER LA PRESENTAZIONE DI PROGETTI DI ESPERIENZE ALL’ESTERO PER GLI ANNI FORMATIVI 2016/2017 E 2017/2018 DEGLI STUDENTI DEI CORSI IEFP, IFTS E ITS."]
[]
["Denominazione Istituzione scolastica/formativa/ATS capofila/Fondazione   ",{"$nulls":3},{"$f":"'PARTE 1a SPESE STUDENTE'!E8:L8","v":0},{"$nulls":4},"Codice meccanografico scuola o ID unità organizzativa ",null,null,{"$f":"'PARTE 1a SPESE STUDENTE'!P8","v":0}]
[]
["PARTE SECONDA  SCHEDA SPESEACCOMPAGNATORE"]
[]
["N°","ACCOMPAGNATORE",{"$nulls":3},"SPESE INDIVIDUALI ACCOMPAGNATOERE",{"$nulls":6},"NOTE"]
[{"$nulls":5},"Sezione A\n",null,"Sezione B",null,"Sezione C",null,"TOT. Sezioni A+B+C\n€"]
[null,"Cognome ","Nome ","Codice F. ","Alunno","SPESE VIAGGIO E TRASFERIMENTI\nTOT. COMPLESSIVO\n€\n","Estremi di tutte le pezze giustificative di riscontro (es. fattura, scontrino e/o ricevute fiscali, ecc.)","SPESE ALLOGGIO\nTOT. COMPLESSIVO\n€\n","Estremi di tutte le pezze giustificative di riscontro (es. fattura, scontrino e/o ricevute fiscali, ecc.)","SPESE VITTO\nTOT. COMPLESSIVO\n€\n","Estremi di tutte le pezze giustificative di riscontro (es. fattura, scontrino e/o ricevute fiscali, ecc.)"]
[1,{"$nulls":10},{"$f":"F14+H14+J14","v":{"v":0,"d":"0.00"}}]
[2,{"$nulls":10},{"$f":"F15+H15+J15","v":{"v":0,"d":"0.00"}}]
[3,{"$nulls":10},{"v":0,"d":"0.00"}]
[4,{"$nulls":10},{"v":0,"d":"0.00"}]
[5,{"$nulls":10},{"v":0,"d":"0.00"}]
[6,{"$nulls":10},{"v":0,"d":"0.00"}]
[7,{"$nulls":10},{"v":0,"d":"0.00"}]
[8,{"$nulls":10},{"v":0,"d":"0.00"}]
["Tot. Spese ",{"$nulls":4},{"$f":"SUM(F14:F21)","v":{"v":0,"d":"0.00"}},null,{"$f":"SUM(H14:H21)","v":{"v":0,"d":"0.00"}},null,{"$f":"SUM(J14:J21)","v":{"v":0,"d":"0.00"}},null,{"$f":"SUM(L14:L21)","v":{"v":0,"d":"0.00"}}]

{"sheet":"PARTE 3a ALTRE SPESE","index":2,"n_rows":20,"n_cols":8,"rows_kept":20,"merged":[[0,0,0,7],[2,0,2,7],[4,0,4,7],[6,4,6,5],[8,0,8,5],[10,1,10,4],[11,1,11,4],[12,1,12,4],[13,1,13,4],[14,1,14,4],[15,1,15,4],[16,1,16,4],[17,1,17,4],[18,1,18,4],[19,0,19,4]]}
[]
[]
["ALLEGATO “A4” Schede di Rendicontazione”"]
[]
["\nAVVISO PER LA PRESENTAZIONE DI PROGETTI DI PERCORSI CHE PREVEDONO UN’ESPERIENZA ALL’ESTERO PER GLI ANNI FORMATIVI 2016/2017 E 2017/2018 DEGLI STUDENTI DEI CORSI DI ISTRUZIONE E FORMAZIONE PROFESSIONALE (IeFP).\n"]
[]
["Denominazione Istituzione scolastica/formativa/ATS capofila/Fondazione   ",{"$nulls":3},{"$f":"'PARTE 1a SPESE STUDENTE'!E8:L8","v":0},null,"Codice meccanografico scuola o ID unità organizzativa ",{"$f":"'PARTE 2a SPESE ACCOMPAGNATORI'!M7","v":0}]
[]
["PARTE TERZA  SCHEDA ALTRE SPESE"]
[]
["N°","DESCRIZIONE DELLA SPESA",{"$nulls":3},"TOTALE COMPLESSIVO\n€","Estremi di tutte le pezze giustificative di riscontro (es. fattura, scontrino e/o ricevute fiscali, ecc.)","NOTE"]
[1]
[2]
[3]
[4]
[5]
[6]
[7]
[8]
["Tot.  Altre spese ",{"$nulls":4},{"$f":"F12+F13+F14+F15+F16+F17+F18+F19","v":{"v":0,"d":"0.00"}}]

{"sheet":"PARTE 4a SCHEDA DI RIEPILOGO","index":3,"n_rows":16,"n_cols":8,"rows_kept":16,"merged":[[0,0,0,7],[2,0,2,7],[5,0,5,7],[7,4,7,5],[9,0,9,5],[11,1,11,4],[11,6,11,7],[12,1,12,4],[12,6,12,7],[13,1,13,4],[13,6,13,7],[14,1,14,4],[14,6,14,7],[15,0,15,4],[15,6,15,7]]}
[]
[]
["ALLEGATO “A4” Schede di Rendicontazione”"]
[]
[]
["\nAVVISO PER LA PRESENTAZIONE DI PROGETTI DI ESPERIENZE ALL’ESTERO PER GLI ANNI FORMATIVI 2016/2017 E 2017/2018 DEGLI STUDENTI DEI CORSI IEFP, IFTS E ITS.\n"]
[]
["Denominazione Istituzione scolastica/formativa/ATS capofila/Fondazione   ",{"$nulls":3},{"$f":"'PARTE 1a SPESE STUDENTE'!E8:L8","v":0},null,"Codice meccanografico scuola o ID unità organizzativa ",{"$f":"'PARTE 1a SPESE STUDENTE'!P8","v":0}]
[]
["PARTE QUARTA   SCHEDA DI RIEPILOGO"]
[]
["N°","DESCRIZIONE DELLA SPESA",{"$nulls":3},"TOTALE COMPLESSIVO\n€","NOTE"]
[1,"TOTALE SPESA STUDENTI",{"$nulls":3},{"$f":"'PARTE 1a SPESE STUDENTE'!O35","v":{"v":0,"d":"0.00"}}]
[2,"TOTALE SPESE ACCOMPAGBNATORI (parte 2a)",{"$nulls":3},{"$f":"'PARTE 2a SPESE ACCOMPAGNATORI'!$L$22","v":{"v":0,"d":"0.00"}}]
[3,"TOTALE ALTRE SPESE (parte 3a)",{"$nulls":3},{"$f":"'PARTE 3a ALTRE SPESE'!$F$20","v":{"v":0,"d":"0.00"}}]
["Tot. Spese viaggio/spostamenti",{"$nulls":4},{"$f":"F13+F14+F15","v":{"v":0,"d":"0.00"}}]